fUSD/lending_fUSD_20251105
["ID","MTS","AMOUNT","RATE_DAILY","PERIOD"]
[393193788,1762309844195,-556.0,0.00028332,2]
[393193789,1762309844204,-159.94877796,0.00028332,2]
[393193790,1762309844213,-500.0,0.00028332,2]
[393193791,1762309844222,-500.0,0.00028332,2]
[393193792,1762309844231,-150.0,0.00028332,2]
[393193793,1762309844241,-150.0,0.00028332,2]
[393193794,1762309844250,-564.94863932,0.00028332,2]
[393193795,1762309844259,-252.64109713,0.00028332,2]
[393193796,1762309844268,-500.0,0.00028332,2]
[393193797,1762309844278,-261.70059104,0.00028332,2]
[393193798,1762309844287,-269.91,0.00028377,2]
[393193799,1762309844297,-150.0,0.00028386,7]
[393193800,1762309844306,-203.09765029,0.00028469,2]
[393193801,1762309844319,-500.0,0.00028469,2]
[393193802,1762309844330,-433.0,0.00028469,2]
[393193803,1762309844340,-556.0,0.00028469,2]
[393193804,1762309844349,-500.0,0.00028469,2]
[393193805,1762309844359,-500.0,0.00028469,2]
[393193806,1762309844368,-158.74802862,0.00028469,2]
[393193807,1762309844378,-215.68751895,0.00028469,2]
[393193808,1762309844388,-170.04703191,0.00028469,2]
[393193809,1762309844397,-3521.0,0.00028526,2]
[393193810,1762309844406,-465.17788788,0.00028558,2]
[393193811,1762309844416,-487.30061184,0.00028606,2]
[393193812,1762309844425,-433.0,0.00028606,2]
[393193813,1762309844435,-556.0,0.00028606,2]
[393193814,1762309844446,-500.0,0.00028606,2]
[393193815,1762309844455,-500.0,0.00028606,2]
[393193816,1762309844465,-162.32794439,0.00028701,2]
[393193817,1762309844474,-433.0,0.00028743,2]
[393193818,1762309844483,-556.0,0.00028743,2]
[393193819,1762309844493,-500.0,0.00028743,2]
[393193820,1762309844503,-487.04730745,0.00028743,2]
[393193821,1762309844512,-8965.00622487,0.0002876,30]
[393193822,1762309844522,-151.0,0.00028767,30]
[393193823,1762309844531,-1110.85,0.00028821,2]
[393193824,1762309844540,-300.0,0.00028869,7]
[393193825,1762309844550,-433.0,0.0002888,2]
[393193826,1762309844559,-556.0,0.0002888,2]
[393193827,1762309844571,-381.56336037,0.0002888,2]
[393193828,1762309844586,-5659.46,0.00028935,2]
[393193829,1762309844596,-300.68049215,0.00029,2]
[393193830,1762309844605,-300.0,0.00029006,7]
[393193831,1762309844614,-300.0,0.00029008,10]
[393193832,1762309844624,-14284.94,0.00029009,2]
[393193833,1762309844633,-9038.86,0.00029009,2]
[393193834,1762309844648,-433.0,0.00029017,2]
[393193835,1762309844657,-556.0,0.00029017,2]
[393193836,1762309844667,-433.0,0.00029154,2]
[393193837,1762309844677,-556.0,0.00029154,2]
[393193838,1762309844687,-151.08,0.000292,7]
[393193839,1762309844697,-500.0,0.00029213,2]
[393193840,1762309844898,-162.038573,0.00029243,31]
[393193841,1762309844927,-151.0,0.00029243,31]
[393193842,1762309844937,-155.204608,0.00029243,31]
[393193843,1762309844947,-151.0,0.00029243,31]
[393193844,1762309844956,-151.0,0.00029243,31]
[393193845,1762309844966,-151.0,0.00029243,31]
[393193846,1762309844976,-151.0,0.00029243,31]
[393193847,1762309844985,-151.0,0.00029243,31]
[393193848,1762309844994,-151.0,0.00029243,31]
[393193849,1762309845003,-151.0,0.00029243,31]
[393193850,1762309845012,-153.567204,0.00029243,31]
[393193851,1762309845021,-433.0,0.00029291,2]
[393193852,1762309845036,-556.0,0.00029291,2]
[393193853,1762309845047,-8197.5825012,0.00029337,2]
[393193854,1762309845056,-433.0,0.00029428,2]
[393193855,1762309845066,-556.0,0.00029428,2]
[393193856,1762309845075,-151.0,0.00029428,31]
[393193857,1762309845085,-151.0,0.00029428,31]
[393193858,1762309845094,-156.384693,0.00029428,31]
[393193859,1762309845104,-151.0,0.00029428,31]
[393193860,1762309845113,-152.809418,0.00029428,31]
[393193861,1762309845122,-151.0,0.00029428,31]
[393193862,1762309845132,-151.0,0.00029428,31]
[393193863,1762309845141,-151.0,0.00029428,31]
[393193864,1762309845150,-432.579819,0.00029428,31]
[393193865,1762309845159,-432.579819,0.00029428,31]
[393193866,1762309845168,-432.579819,0.00029428,31]
[393193867,1762309845178,-432.579819,0.00029428,31]
[393193868,1762309845188,-151.0,0.00029428,31]
[393193869,1762309845197,-151.0,0.00029428,31]
[393193870,1762309845206,-151.0,0.00029428,31]
[393193871,1762309845216,-151.0,0.00029428,31]
[393193872,1762309845225,-180.441996,0.00029428,31]
[393193873,1762309845235,-502.0,0.00029562,2]
[393193874,1762309845244,-433.0,0.00029565,2]
[393193875,1762309845254,-556.0,0.00029565,2]
[393193876,1762309845264,-371.76424894,0.00029699,2]
[393193877,1762309845274,-433.0,0.00029702,2]
[393193878,1762309845284,-556.0,0.00029702,2]
[393193879,1762309845293,-433.0,0.00029839,2]
[393193880,1762309845302,-556.0,0.00029839,2]
[393193881,1762309845312,-1000.0,0.00029839,2]
[393193882,1762309845322,-433.0,0.00029976,2]
[393193883,1762309845331,-556.0,0.00029976,2]
[393193884,1762309845340,-500.0,0.00029999,2]
[393193885,1762309845350,-260.12095829,0.00029999,2]
[393193886,1762309845359,-176.91780089,0.00029999,2]
[393193887,1762309845369,-582.28118911,0.00029999,2]
[393193888,1762309845378,-1002.54939721,0.0003,14]
[393193889,1762309845387,-5643.47262625,0.0003,2]
[393193890,1762309845397,-4210.16260754,0.0003,2]
[393193891,1762309845406,-50270.06075699,0.0003,2]
[393193892,1762309845415,-1000.0,0.0003,14]
[393193893,1762309845424,-433.0,0.00030113,2]
[393193894,1762309845433,-556.0,0.00030113,2]
[393193895,1762309845443,-307.85659528,0.0003013,2]
[393193896,1762309845454,-1058.3897101,0.0003013,2]
[393193897,1762309845464,-13659.9702006,0.0003013,2]
[393193898,1762309845473,-999.0,0.00030136,2]
[393193899,1762309845483,-182.75,0.00030137,30]
[393193900,1762309845492,-433.0,0.0003025,2]
[393193901,1762309845501,-556.0,0.0003025,2]
[393193902,1762309845511,-2258.0,0.00030371,2]
[393193903,1762309845520,-433.0,0.00030387,2]
[393193904,1762309845530,-556.0,0.00030387,2]
[393193905,1762309845539,-465.17788788,0.00030483,15]
[393193906,1762309845548,-433.0,0.00030524,2]
[393193907,1762309845557,-556.0,0.00030524,2]
[393193908,1762309845566,-433.0,0.00030661,2]
[393193909,1762309845576,-556.0,0.00030661,2]
[393193910,1762309845585,-433.0,0.00030798,2]
[393193911,1762309845594,-556.0,0.00030798,2]
[393193912,1762309845603,-2574.93159361,0.0003084,2]
[393193913,1762309845613,-433.0,0.00030935,2]
[393193914,1762309845622,-556.0,0.00030935,2]
[393193915,1762309845632,-9232.27418274,0.0003095,2]
[393193916,1762309845644,-2231.77,0.00030993,2]
[393193917,1762309845653,-501.72880029,0.00031,2]
[393193918,1762309845663,-461.71293037,0.00031,2]
[393193919,1762309845672,-500.0,0.00031028,120]
[393193920,1762309845682,-150.0,0.00031028,20]
[393193921,1762309845692,-433.0,0.00031072,2]
[393193922,1762309845701,-556.0,0.00031072,2]
[393193923,1762309845711,-2481.1,0.000311,2]
[393193924,1762309845722,-610.077,0.00031134,2]
[393193925,1762309845732,-1315.0,0.00031134,2]
[393193926,1762309845741,-576.786,0.00031134,2]
[393193927,1762309845750,-3422.0,0.00031134,2]
[393193928,1762309845760,-444.96050936,0.00031209,2]
[393193929,1762309845769,-577.57313684,0.00031209,2]
[393193930,1762309845779,-224.93,0.00031356,2]
[393193931,1762309845787,-414.5,0.00031383,29]
[393193932,1762309845797,-8167.786,0.00031383,29]
[393193933,1762309845809,-151.0,0.00031383,31]
[393193934,1762309845818,-151.0,0.00031383,31]
[393193935,1762309845828,-169.00966,0.00031383,31]
[393193936,1762309845837,-157.714772,0.00031383,31]
[393193937,1762309845846,-154.790271,0.00031383,31]
[393193938,1762309845857,-151.0,0.00031383,31]
[393193939,1762309845866,-151.0,0.00031383,31]
[393193940,1762309845876,-151.0,0.00031383,30]
[393193941,1762309845885,-151.0,0.00031383,31]
[393193942,1762309845894,-400.0,0.000314,120]
[393193943,1762309845903,-6486.23981634,0.0003143,4]
[393193944,1762309845913,-1007.01,0.00031537,120]
[393193945,1762309845923,-445.29150389,0.00031541,2]
[393193946,1762309845933,-8197.5825012,0.00031547,2]
[393193947,1762309845943,-151.08,0.000317,7]
[393193948,1762309845952,-224.92459953,0.00031778,2]
[393193950,1762309845962,-940.02202175,0.00031855,30]
[393193952,1762309845971,-538.86,0.0003197,120]
[393193953,1762309845981,-400.0,0.00032,120]
[393193954,1762309845990,-519.712659,0.00032054,6]
[393193955,1762309845999,-482.789414,0.00032054,6]
[393193956,1762309846010,-500.07893,0.00032054,6]
[393193957,1762309846020,-1135.75457,0.00032054,6]
[393193958,1762309846029,-156.083284,0.00032054,6]
[393193959,1762309846038,-277.485063,0.00032054,6]
[393193960,1762309846047,-182.75,0.00032176,30]
[393193961,1762309846056,-151.0,0.00032199,31]
[393193962,1762309846065,-151.0,0.00032199,31]
[393193963,1762309846075,-151.0,0.00032199,31]
[393193964,1762309846084,-151.0,0.00032199,31]
[393193965,1762309846093,-151.0,0.00032199,31]
[393193966,1762309846102,-151.0,0.00032199,31]
[393193967,1762309846112,-151.0,0.00032199,31]
[393193968,1762309846121,-151.0,0.00032199,31]
[393193969,1762309846130,-160.59943,0.00032199,31]
[393193970,1762309846139,-151.0,0.00032199,31]
[393193971,1762309846148,-161.147188,0.00032199,31]
[393193972,1762309846157,-151.0,0.00032199,31]
[393193973,1762309846166,-255.872056,0.00032199,31]
[393193974,1762309846175,-151.0,0.00032199,31]
[393193975,1762309846185,-151.0,0.00032199,31]
[393193976,1762309846195,-151.0,0.00032199,31]
[393193977,1762309846205,-153.808122,0.00032199,31]
[393193978,1762309846215,-151.0,0.00032199,31]
[393193979,1762309846225,-151.0,0.00032199,31]
[393193980,1762309846235,-217.205769,0.00032199,31]
[393193981,1762309846244,-217.205769,0.00032199,31]
[393193982,1762309846253,-217.205769,0.00032199,31]
[393193983,1762309846262,-217.205769,0.00032199,31]
[393193984,1762309846272,-151.0,0.00032199,31]
[393193985,1762309846281,-151.0,0.00032199,31]
[393193986,1762309846290,-151.0,0.00032199,31]
[393193987,1762309846299,-165.473752,0.00032199,31]
[393193988,1762309846308,-300.0,0.00032199,10]
[393193989,1762309846317,-20465.19,0.000322,7]
[393193990,1762309846327,-2481.1,0.000322,2]
[393193991,1762309846340,-151.000013,0.000322,31]
[393193992,1762309846349,-195.05287,0.000322,31]
[393193993,1762309846359,-151.0,0.000322,31]
[393193994,1762309846369,-151.0,0.000322,31]
[393193995,1762309846379,-151.0,0.000322,31]
[393193996,1762309846390,-151.0,0.000322,31]
[393193997,1762309846400,-151.000002,0.000322,31]
[393193998,1762309846410,-330.136094,0.000322,31]
[393193999,1762309846419,-330.136094,0.000322,31]
[393194000,1762309846429,-330.136094,0.000322,31]
[393194001,1762309846439,-151.0,0.000322,31]
[393194002,1762309846450,-330.136094,0.000322,31]
[393194003,1762309846459,-153.67341,0.000322,31]
[393194004,1762309846469,-151.0,0.000322,31]
[393194005,1762309846479,-151.0,0.000322,31]
[393194006,1762309846488,-151.0,0.000322,31]
[393194007,1762309846498,-151.0,0.000322,31]
[393194008,1762309846508,-151.0,0.000322,31]
[393194009,1762309846517,-151.0,0.000322,31]
[393194010,1762309846527,-151.0,0.000322,31]
[393194011,1762309846536,-151.0,0.000322,31]
[393194012,1762309846545,-568.364366,0.000322,31]
[393194013,1762309846554,-165.193092,0.000322,31]
[393194014,1762309846564,-568.364366,0.000322,31]
[393194015,1762309846573,-568.364366,0.000322,31]
[393194016,1762309846589,-151.0,0.000322,31]
[393194017,1762309846599,-568.364366,0.000322,31]
[393194018,1762309846608,-161.327678,0.000322,30]
[393194019,1762309846617,-252.467454,0.000322,31]
[393194020,1762309846627,-151.0,0.000322,31]
[393194021,1762309846637,-252.467454,0.000322,31]
[393194022,1762309846650,-252.467454,0.000322,31]
[393194023,1762309846660,-252.467454,0.000322,31]
[393194024,1762309846669,-151.0,0.000322,31]
[393194025,1762309846679,-151.0,0.000322,31]
[393194026,1762309846690,-151.0,0.000322,31]
[393194027,1762309846700,-162.32794439,0.00032289,2]
[393194028,1762309846709,-285.390424,0.00032301,6]
[393194029,1762309846720,-519.712659,0.00032301,6]
[393194030,1762309846730,-482.789414,0.00032301,6]
[393194031,1762309846739,-500.07893,0.00032301,6]
[393194032,1762309846748,-1135.75457,0.00032301,6]
[393194033,1762309846757,-156.083284,0.00032301,6]
[393194034,1762309846768,-188.797684,0.00032301,6]
[393194035,1762309846777,-277.485063,0.00032301,6]
[393194036,1762309846786,-465.17788788,0.00032408,15]
[393194037,1762309846796,-371.76424894,0.00032527,2]
[393194038,1762309846805,-151.0,0.00032815,31]
[393194039,1762309846815,-151.0,0.00032815,31]
[393194040,1762309846824,-151.0,0.00032815,31]
[393194041,1762309846836,-151.0,0.00032815,31]
[393194042,1762309846845,-151.0,0.00032815,31]
[393194043,1762309846855,-151.0,0.00032815,31]
[393194044,1762309846864,-151.0,0.00032815,14]
[393194045,1762309846873,-151.0,0.00032815,14]
[393194046,1762309846882,-181.690351,0.00032815,14]
[393194047,1762309846891,-162.999309,0.00032815,31]
[393194049,1762309846901,-151.0,0.00032815,31]
[393194051,1762309846910,-267.725091,0.00032815,31]
[393194053,1762309846919,-151.0,0.00032815,31]
[393194055,1762309846929,-151.0,0.00032815,31]
[393194057,1762309846938,-151.0,0.00032815,31]
[393194059,1762309846947,-151.0,0.00032815,31]
[393194061,1762309846956,-291.198301,0.00032815,28]
[393194063,1762309846965,-291.198301,0.00032815,28]
[393194065,1762309846975,-291.198301,0.00032815,28]
[393194067,1762309846984,-291.198301,0.00032815,28]
[393194069,1762309846993,-538.86,0.00032865,120]
[393194071,1762309847002,-300.0,0.00032875,10]
[393194072,1762309847012,-500.0,0.00032875,2]
[393194074,1762309847021,-218.36398805,0.00032876,2]
[393194076,1762309847036,-500.0,0.00032876,2]
[393194078,1762309847053,-500.0,0.00032876,2]
[393194080,1762309847071,-500.0,0.00032876,2]
[393194082,1762309847080,-501.21418892,0.00032876,2]
[393194084,1762309847089,-500.0,0.00032876,2]
[393194086,1762309847099,-500.0,0.00032876,2]
[393194088,1762309847108,-500.0,0.00032876,2]
[393194090,1762309847117,-500.0,0.00032876,2]
[393194092,1762309847126,-500.0,0.00032876,2]
[393194094,1762309847135,-500.0,0.00032876,2]
[393194096,1762309847144,-500.0,0.00032876,2]
[393194098,1762309847154,-500.0,0.00032876,2]
[393194100,1762309847163,-500.0,0.00032876,2]
[393194102,1762309847174,-338.6833518,0.00032876,2]
[393194104,1762309847183,-1000.0,0.00032876,2]
[393194106,1762309847192,-1000.0,0.00032876,2]
[393194108,1762309847201,-1000.0,0.00032876,2]
[393194110,1762309847211,-1000.0,0.00032876,2]
[393194112,1762309847219,-1000.0,0.00032876,2]
[393194114,1762309847228,-250.79016794,0.00032876,2]
[393194116,1762309847239,-151.0,0.00032876,31]
[393194118,1762309847248,-407.245394,0.00032876,31]
[393194119,1762309847257,-151.0,0.00032876,31]
[393194120,1762309847266,-407.245394,0.00032876,31]
[393194121,1762309847330,-151.0,0.00032876,31]
[393194122,1762309847341,-407.245394,0.00032876,31]
[393194123,1762309847350,-151.0,0.00032876,31]
[393194124,1762309847360,-407.245394,0.00032876,31]
[393194125,1762309847371,-151.0,0.00032876,31]
[393194126,1762309847380,-151.0,0.00032876,31]
[393194127,1762309847389,-151.0,0.00032876,31]
[393194128,1762309847400,-162.090791,0.00032876,31]
[393194129,1762309847410,-152.110986,0.00032876,31]
[393194130,1762309847421,-156.28446,0.00032876,31]
[393194131,1762309847432,-151.0,0.00032876,31]
[393194132,1762309847441,-153.913906,0.00032876,31]
[393194133,1762309847450,-151.0,0.00032876,31]
[393194134,1762309847459,-151.0,0.00032876,15]
[393194135,1762309847468,-151.0,0.00032876,15]
[393194136,1762309847477,-151.0,0.00032876,15]
[393194137,1762309847486,-502.05799969,0.00032876,120]
[393194138,1762309847495,-500.0,0.00032876,10]
[393194139,1762309847503,-500.0,0.00032876,10]
[393194140,1762309847512,-500.0,0.00032876,10]
[393194141,1762309847521,-500.0,0.00032876,10]
[393194142,1762309847529,-500.0,0.00032876,10]
[393194143,1762309847538,-500.0,0.00032876,10]
[393194144,1762309847547,-500.0,0.00032876,10]
[393194145,1762309847556,-500.0,0.00032876,10]
[393194146,1762309847566,-500.0,0.00032876,10]
[393194147,1762309847575,-171.45858457,0.00032876,10]
[393194148,1762309847585,-500.0,0.00032876,120]
[393194149,1762309847594,-507.33791597,0.00032876,120]
[393194150,1762309847603,-500.0,0.00032876,2]
[393194151,1762309847612,-500.0,0.00032876,2]
[393194152,1762309847621,-500.0,0.00032876,2]
[393194153,1762309847632,-500.0,0.00032876,2]
[393194154,1762309847642,-500.0,0.00032876,2]
[393194155,1762309847652,-402.19211532,0.00032876,2]
[393194156,1762309847662,-500.0,0.00032876,2]
[393194157,1762309847672,-500.0,0.00032876,2]
[393194158,1762309847682,-500.0,0.00032876,2]
[393194159,1762309847692,-500.0,0.00032876,2]
[393194160,1762309847701,-500.0,0.00032876,2]
[393194161,1762309847711,-500.0,0.00032876,2]
[393194162,1762309847721,-500.0,0.00032876,2]
[393194163,1762309847731,-500.0,0.00032876,2]
[393194164,1762309847740,-500.0,0.00032876,2]
[393194165,1762309847751,-500.0,0.00032876,2]
[393194166,1762309847760,-500.0,0.00032876,2]
[393194167,1762309847769,-500.0,0.00032876,2]
[393194168,1762309847778,-500.0,0.00032876,2]
[393194169,1762309847787,-500.0,0.00032876,2]
[393194170,1762309847797,-500.0,0.00032876,2]
[393194171,1762309847806,-500.0,0.00032876,2]
[393194172,1762309847815,-500.0,0.00032876,2]
[393194173,1762309847824,-500.0,0.00032876,2]
[393194174,1762309847835,-500.0,0.00032876,2]
[393194175,1762309847844,-500.0,0.00032876,2]
[393194176,1762309847853,-500.0,0.00032876,2]
[393194177,1762309847862,-500.0,0.00032876,2]
[393194178,1762309847871,-193.00321115,0.00032876,2]
[393194179,1762309847881,-999.0,0.00032876,120]
[393194180,1762309847891,-3896.74,0.00032876,2]
[393194181,1762309847900,-3896.74,0.00032876,2]
[393194182,1762309847909,-3896.74,0.00032876,2]
[393194183,1762309847918,-3896.74,0.00032876,2]
[393194184,1762309847927,-3896.74,0.00032876,2]
[393194185,1762309847936,-3896.74,0.00032876,2]
[393194186,1762309847946,-3896.74,0.00032876,2]
[393194187,1762309847955,-3896.74,0.00032876,2]
[393194188,1762309847964,-3896.74,0.00032876,2]
[393194189,1762309847973,-3896.74,0.00032876,2]
[393194190,1762309847982,-3896.74,0.00032876,2]
[393194191,1762309847991,-3896.74,0.00032876,2]
[393194192,1762309848000,-3896.74,0.00032876,2]
[393194193,1762309848011,-3896.74,0.00032876,2]
[393194194,1762309848021,-3896.74,0.00032876,2]
[393194195,1762309848031,-3896.74,0.00032876,2]
[393194196,1762309848041,-3896.74,0.00032876,2]
[393194197,1762309848050,-3896.74,0.00032876,2]
[393194198,1762309848059,-3896.74,0.00032876,2]
[393194199,1762309848068,-3896.74,0.00032876,2]
[393194200,1762309848077,-3896.74,0.00032876,2]
[393194201,1762309848090,-3896.74,0.00032876,2]
[393194202,1762309848099,-3896.74,0.00032876,2]
[393194203,1762309848109,-3896.86,0.00032876,2]
[393194204,1762309848117,-300.0,0.00032876,2]
[393194205,1762309848126,-300.0,0.00032876,2]
[393194206,1762309848135,-300.0,0.00032876,2]
[393194207,1762309848144,-300.0,0.00032876,2]
[393194208,1762309848153,-300.0,0.00032876,2]
[393194209,1762309848164,-300.0,0.00032876,2]
[393194210,1762309848173,-300.0,0.00032876,2]
[393194211,1762309848181,-300.0,0.00032876,2]
[393194212,1762309848191,-151.0,0.00032876,31]
[393194213,1762309848200,-151.0,0.00032876,31]
[393194214,1762309848208,-151.0,0.00032876,31]
[393194215,1762309848217,-158.091425,0.00032876,31]
[393194216,1762309848228,-151.0,0.00032876,31]
[393194217,1762309848237,-151.0,0.00032876,30]
[393194218,1762309848247,-178.981688,0.00032876,31]
[393194219,1762309848256,-151.0,0.00032876,31]
[393194220,1762309848265,-150.0,0.00032877,5]
[393194221,1762309848274,-538.86,0.0003297,120]
[393194222,1762309848284,-500.0,0.00032989,120]
[393194223,1762309848293,-579.43268609,0.00032989,7]
[393194224,1762309848302,-500.0,0.00032989,30]
[393194225,1762309848311,-509.01378392,0.00032989,120]
[393194226,1762309848320,-622.71477286,0.00032989,120]
[393194227,1762309848329,-151.08,0.000331,14]
[393194228,1762309848338,-29107.0,0.000331,2]
[393194229,1762309848347,-584.0,0.00033139,2]
[393194230,1762309848356,-300.0,0.00033155,10]
[393194231,1762309848365,-820.0,0.00033156,2]
[393194232,1762309848374,-1595.0,0.00033156,2]
[393194233,1762309848383,-1272.0,0.00033156,2]
[393194234,1762309848392,-812.0,0.00033156,2]
[393194235,1762309848401,-909.127,0.00033156,2]
[393194236,1762309848410,-1188.0,0.00033156,2]
[393194237,1762309848420,-151.0,0.00033156,31]
[393194238,1762309848429,-153.697415,0.00033156,31]
[393194239,1762309848439,-152.94842,0.00033156,31]
[393194240,1762309848447,-151.0,0.00033156,31]
[393194241,1762309848456,-151.0,0.00033156,31]
[393194242,1762309848465,-151.0,0.00033156,31]
[393194243,1762309848474,-396.69,0.00033165,2]
[393194244,1762309848483,-300.0,0.00033199,10]
[393194245,1762309848492,-20465.19,0.000332,14]
[393194246,1762309848502,-301.0,0.0003323,2]
[393194247,1762309848511,-300.0,0.00033299,10]
[393194248,1762309848520,-2481.1,0.000333,2]
[393194249,1762309848529,-203.91108501,0.00033425,5]
[393194250,1762309848538,-8197.5825012,0.00033757,2]
[393194251,1762309848547,-5515.0,0.000338,3]
[393194252,1762309848556,-4221.0,0.00033812,7]
[393194253,1762309848565,-200.0,0.00034,120]
[393194254,1762309848574,-228.74,0.00034,2]
[393194255,1762309848583,-5888.0,0.00034054,7]
[393194256,1762309848592,-20465.19,0.000341,14]
[393194257,1762309848602,-500.0,0.00034117,120]
[393194258,1762309848611,-2283.0,0.00034118,2]
[393194259,1762309848620,-607.0,0.00034134,2]
[393194260,1762309848629,-1315.0,0.00034134,2]
[393194261,1762309848639,-574.0,0.00034134,2]
[393194262,1762309848651,-568.213,0.00034134,2]
[393194263,1762309848660,-1000.0,0.00034141,14]
[393194264,1762309848670,-202.500631,0.000342,9]
[393194265,1762309848679,-182.75,0.00034212,30]
[393194266,1762309848690,-2481.1,0.000343,2]
[393194267,1762309848699,-465.17788788,0.00034332,15]
[393194268,1762309848708,-538.86,0.00034349,120]
[393194269,1762309848718,-538.86,0.00034349,120]
[393194270,1762309848727,-2283.0,0.00034398,2]
[393194271,1762309848736,-5515.0,0.000344,5]
[393194272,1762309848745,-4221.0,0.00034445,120]
[393194273,1762309848754,-500.0,0.00034451,2]
[393194274,1762309848764,-4221.0,0.00034451,2]
[393194275,1762309848773,-2283.0,0.00034479,2]
[393194276,1762309848783,-158.0,0.000345,31]
[393194277,1762309848792,-158.0,0.000345,31]
[393194278,1762309848801,-158.0,0.000345,45]
[393194279,1762309848810,-159.13,0.000345,45]
[393194280,1762309848819,-300.62368073,0.00034504,2]
[393194281,1762309848828,-3730.0,0.00034515,5]
[393194282,1762309848838,-312.3738774,0.000347,5]
[393194283,1762309848848,-2000.0,0.000348,2]
[393194284,1762309848858,-20465.19,0.000349,14]
[393194285,1762309848867,-4221.0,0.00034917,2]
[393194286,1762309848876,-2283.0,0.00034987,2]
[393194287,1762309848885,-5017.16173748,0.00035,3]
[393194288,1762309848895,-181.24451209,0.00035,2]
[393194289,1762309848903,-2283.0,0.00035043,2]
[393194290,1762309848913,-300.62368071,0.00035116,2]
[393194291,1762309848923,-4221.0,0.00035216,2]
[393194292,1762309848932,-2283.0,0.00035246,120]
[393194293,1762309848942,-220.30341,0.00035344,2]
[393194294,1762309848952,-371.76424894,0.00035354,2]
[393194295,1762309848961,-151.0,0.00035363,31]
[393194296,1762309848970,-151.0,0.00035363,31]
[393194297,1762309848979,-200.432926,0.00035363,31]
[393194298,1762309848988,-152.061175,0.00035363,31]
[393194299,1762309848997,-151.0,0.00035363,31]
[393194300,1762309849008,-8682.45668421,0.00035363,5]
[393194301,1762309849017,-311.0,0.0003538,2]
[393194302,1762309849026,-4221.0,0.00035535,2]
[393194303,1762309849035,-156.69,0.00035537,60]
[393194304,1762309849043,-156.31,0.00035537,60]
[393194305,1762309849052,-1000.0,0.00035564,2]
[393194306,1762309849061,-2283.0,0.00035593,7]
[393194307,1762309849070,-2283.0,0.00035612,2]
[393194308,1762309849079,-500.0,0.00035616,120]
[393194309,1762309849089,-500.0,0.00035616,120]
[393194310,1762309849098,-500.0,0.00035616,120]
[393194311,1762309849107,-500.0,0.00035616,120]
[393194312,1762309849116,-500.0,0.00035616,120]
[393194313,1762309849126,-500.0,0.00035616,120]
[393194314,1762309849135,-500.0,0.00035616,120]
[393194315,1762309849144,-500.0,0.00035616,120]
[393194316,1762309849154,-500.0,0.00035616,120]
[393194317,1762309849163,-500.0,0.00035616,120]
[393194318,1762309849173,-500.0,0.00035616,120]
[393194319,1762309849183,-500.0,0.00035616,120]
[393194320,1762309849191,-500.0,0.00035616,120]
[393194321,1762309849200,-500.0,0.00035616,120]
[393194322,1762309849210,-500.0,0.00035616,120]
[393194323,1762309849219,-500.0,0.00035616,120]
[393194324,1762309849229,-518.2817857,0.00035616,120]